[Event "Titled Tuesday Blitz April 11 Late 2023"]
[White "Gabriel, Robert"]
[Black "Novikova, Galina"]
[WhiteFideId "4606477"]
[BlackFideId "4157095"]
[WhiteElo "2203"]
[BlackElo "1953"]
[Result "0-1"]
[Round "04"]
[TimeControl "180+2"]
[Date "2023.04.11"]
[WhiteClock "0:00:02"]
[BlackClock "0:00:39"]

1. d4 {[%clk 0:03:00]}  e5 {[%clk 0:02:59]} 2. dxe5 {[%clk 0:02:57]}  d6 {[%clk 0:03:00]} 3. exd6 {[%clk 0:02:55]}  Bxd6 {[%clk 0:03:01]} 4. Nf3 {[%clk 0:02:51]}  Nc6 {[%clk 0:03:01]} 5. Nc3 {[%clk 0:02:40]}  Bg4 {[%clk 0:02:59]} 6. h3 {[%clk 0:02:36]}  Bh5 {[%clk 0:02:59]} 7. e3 {[%clk 0:02:26]}  Qe7 {[%clk 0:02:57]} 8. Bd3 {[%clk 0:02:23]}  O-O-O {[%clk 0:02:57]} 9. g4 {[%clk 0:02:16]}  Bg6 {[%clk 0:02:56]} 10. Bd2 {[%clk 0:02:08]}  Bxd3 {[%clk 0:02:21]} 11. cxd3 {[%clk 0:02:07]}  Nb4 {[%clk 0:02:22]} 12. Ke2 {[%clk 0:01:56]}  Nf6 {[%clk 0:02:10]} 13. Qb3 {[%clk 0:01:53]}  Bc5 {[%clk 0:01:49]} 14. d4 {[%clk 0:01:33]}  Bxd4 {[%clk 0:01:44]} 15. Nb5 {[%clk 0:01:25]}  Bc5 {[%clk 0:01:38]} 16. Rac1 {[%clk 0:01:12]}  Rxd2+ {[%clk 0:01:29]} 17. Nxd2 {[%clk 0:01:07]}  Nc6 {[%clk 0:01:20]} 18. Nf3 {[%clk 0:00:44]}  a6 {[%clk 0:01:18]} 19. Nc3 {[%clk 0:00:37]}  Re8 {[%clk 0:01:15]} 20. Rhd1 {[%clk 0:00:34]}  Bxe3 {[%clk 0:01:10]} 21. Kf1 {[%clk 0:00:13]}  Bxc1 {[%clk 0:01:09]} 22. Rxc1 {[%clk 0:00:11]}  Ne4 {[%clk 0:00:50]} 23. Re1 {[%clk 0:00:10]}  Nd2+ {[%clk 0:00:46]} 24. Kg2 {[%clk 0:00:04]}  Nxb3 {[%clk 0:00:46]} 25. Rxe7 {[%clk 0:00:04]}  Rxe7 {[%clk 0:00:47]} 26. axb3 {[%clk 0:00:04]}  f6 {[%clk 0:00:44]} 27. Nd5 {[%clk 0:00:04]}  Re2 {[%clk 0:00:43]} 28. Nf4 {[%clk 0:00:03]}  Rxb2 {[%clk 0:00:42]} 29. Ne6 {[%clk 0:00:03]}  Rxb3 {[%clk 0:00:39]} 30. Nxg7 {[%clk 0:00:02]}  a5 {[%clk 0:00:39]} 31. h4 {[%clk 0:00:02]}  a4 {[%clk 0:00:39]} 0-1


[Site "https://www.chess.com"]

[Event "Titled Tuesday Blitz April 11 Late 2023"]
[White "Zakhartsov, Vladimir"]
[Black "Tang, Andrew"]
[WhiteFideId "4145097"]
[BlackFideId "2059630"]
[WhiteElo "2497"]
[BlackElo "2596"]
[Result "1/2-1/2"]
[Round "05"]
[TimeControl "180+2"]
[Date "2023.04.11"]
[WhiteClock "0:00:03"]
[BlackClock "0:00:08"]

1. e4 {[%clk 0:02:57]}  e5 {[%clk 0:02:59]} 2. Nf3 {[%clk 0:02:56]}  Nc6 {[%clk 0:02:59]} 3. Nc3 {[%clk 0:02:57]}  Nf6 {[%clk 0:02:59]} 4. a3 {[%clk 0:02:58]}  g6 {[%clk 0:02:59]} 5. Bc4 {[%clk 0:02:57]}  Bg7 {[%clk 0:02:59]} 6. d3 {[%clk 0:02:56]}  d6 {[%clk 0:02:56]} 7. h3 {[%clk 0:02:56]}  O-O {[%clk 0:02:52]} 8. Be3 {[%clk 0:02:56]}  Re8 {[%clk 0:02:49]} 9. Ng5 {[%clk 0:02:49]}  Re7 {[%clk 0:02:47]} 10. O-O {[%clk 0:02:46]}  h6 {[%clk 0:02:45]} 11. Nf3 {[%clk 0:02:46]}  Be6 {[%clk 0:02:46]} 12. Nd5 {[%clk 0:02:40]}  Re8 {[%clk 0:02:44]} 13. c3 {[%clk 0:02:36]}  Bxd5 {[%clk 0:02:26]} 14. exd5 {[%clk 0:02:35]}  Ne7 {[%clk 0:02:27]} 15. Qb3 {[%clk 0:02:35]}  Qc8 {[%clk 0:02:25]} 16. Rae1 {[%clk 0:02:15]}  Rf8 {[%clk 0:02:18]} 17. a4 {[%clk 0:02:03]}  c6 {[%clk 0:02:14]} 18. dxc6 {[%clk 0:01:49]}  bxc6 {[%clk 0:02:15]} 19. Qa2 {[%clk 0:01:40]}  a5 {[%clk 0:02:10]} 20. b4 {[%clk 0:01:35]}  Nf5 {[%clk 0:01:24]} 21. Bb6 {[%clk 0:01:14]}  d5 {[%clk 0:01:19]} 22. Bb3 {[%clk 0:01:13]}  e4 {[%clk 0:01:13]} 23. dxe4 {[%clk 0:00:47]}  Nxe4 {[%clk 0:01:13]} 24. Bxa5 {[%clk 0:00:38]}  Nxc3 {[%clk 0:01:12]} 25. Qc2 {[%clk 0:00:38]}  c5 {[%clk 0:01:12]} 26. Ne5 {[%clk 0:00:31]}  c4 {[%clk 0:00:14]} 27. Qxc3 {[%clk 0:00:26]}  cxb3 {[%clk 0:00:13]} 28. Qxb3 {[%clk 0:00:27]}  Qb7 {[%clk 0:00:07]} 29. Qd3 {[%clk 0:00:23]}  Rfc8 {[%clk 0:00:07]} 30. Qb5 {[%clk 0:00:15]}  Qxb5 {[%clk 0:00:04]} 31. axb5 {[%clk 0:00:15]}  Rab8 {[%clk 0:00:05]} 32. b6 {[%clk 0:00:12]}  Rb7 {[%clk 0:00:05]} 33. b5 {[%clk 0:00:12]}  Nd6 {[%clk 0:00:05]} 34. Nc6 {[%clk 0:00:11]}  Bf8 {[%clk 0:00:05]} 35. Na7 {[%clk 0:00:08]}  Ra8 {[%clk 0:00:05]} 36. Nc6 {[%clk 0:00:06]}  Nxb5 {[%clk 0:00:05]} 37. Bb4 {[%clk 0:00:05]}  Rxb6 {[%clk 0:00:02]} 38. Bxf8 {[%clk 0:00:04]}  Kxf8 {[%clk 0:00:03]} 39. Ne5 {[%clk 0:00:03]}  Rd8 {[%clk 0:00:03]} 40. Rb1 {[%clk 0:00:03]}  d4 {[%clk 0:00:03]} 41. Rfd1 {[%clk 0:00:03]}  Rd5 {[%clk 0:00:03]} 42. Nf3 {[%clk 0:00:03]}  Rbd6 {[%clk 0:00:03]} 43. Rd3 {[%clk 0:00:02]}  Kg7 {[%clk 0:00:03]} 44. Rbd1 {[%clk 0:00:02]}  f5 {[%clk 0:00:04]} 45. R1d2 {[%clk 0:00:02]}  Kf6 {[%clk 0:00:04]} 46. g3 {[%clk 0:00:03]}  g5 {[%clk 0:00:05]} 47. Kg2 {[%clk 0:00:03]}  h5 {[%clk 0:00:05]} 48. Rd1 {[%clk 0:00:03]}  g4 {[%clk 0:00:05]} 49. hxg4 {[%clk 0:00:04]}  hxg4 {[%clk 0:00:06]} 50. Nd2 {[%clk 0:00:04]}  Nc3 {[%clk 0:00:07]} 51. Rc1 {[%clk 0:00:04]}  Ke7 {[%clk 0:00:06]} 52. Nb3 {[%clk 0:00:05]}  Rd8 {[%clk 0:00:06]} 53. Rxd4 {[%clk 0:00:05]}  Ne4 {[%clk 0:00:03]} 54. Rxd5 {[%clk 0:00:05]}  Rxd5 {[%clk 0:00:04]} 55. Rc2 {[%clk 0:00:05]}  Kf6 {[%clk 0:00:04]} 56. Nc1 {[%clk 0:00:05]}  Rd1 {[%clk 0:00:04]} 57. Ne2 {[%clk 0:00:05]}  Ng5 {[%clk 0:00:05]} 58. Rc6+ {[%clk 0:00:05]}  Ke7 {[%clk 0:00:05]} 59. Rc1 {[%clk 0:00:05]}  Rd2 {[%clk 0:00:05]} 60. Nf4 {[%clk 0:00:04]}  Ne4 {[%clk 0:00:06]} 61. Rf1 {[%clk 0:00:04]}  Kf6 {[%clk 0:00:06]} 62. Kg1 {[%clk 0:00:04]}  Ng5 {[%clk 0:00:06]} 63. Kg2 {[%clk 0:00:05]}  Nf3 {[%clk 0:00:06]} 64. Ra1 {[%clk 0:00:04]}  Ke5 {[%clk 0:00:05]} 65. Ra5+ {[%clk 0:00:04]}  Ke4 {[%clk 0:00:06]} 66. Ra4+ {[%clk 0:00:04]}  Ke5 {[%clk 0:00:05]} 67. Ra5+ {[%clk 0:00:05]}  Kd6 {[%clk 0:00:05]} 68. Ra6+ {[%clk 0:00:04]}  Ke7 {[%clk 0:00:05]} 69. Ra1 {[%clk 0:00:04]}  Ng5 {[%clk 0:00:05]} 70. Ng6+ {[%clk 0:00:04]}  Kf6 {[%clk 0:00:05]} 71. Nf4 {[%clk 0:00:04]}  Ne4 {[%clk 0:00:05]} 72. Rf1 {[%clk 0:00:04]}  Ra2 {[%clk 0:00:06]} 73. Kg1 {[%clk 0:00:04]}  Ke5 {[%clk 0:00:06]} 74. Kg2 {[%clk 0:00:05]}  Rd2 {[%clk 0:00:06]} 75. Ng6+ {[%clk 0:00:05]}  Kd4 {[%clk 0:00:07]} 76. Nf4 {[%clk 0:00:05]}  Ng5 {[%clk 0:00:07]} 77. Ra1 {[%clk 0:00:05]}  Ne4 {[%clk 0:00:06]} 78. Rf1 {[%clk 0:00:05]}  Nc3 {[%clk 0:00:06]} 79. Ra1 {[%clk 0:00:04]}  Rb2 {[%clk 0:00:05]} 80. Ra5 {[%clk 0:00:04]}  Ke4 {[%clk 0:00:04]} 81. Rc5 {[%clk 0:00:04]}  Nd1 {[%clk 0:00:03]} 82. Rc4+ {[%clk 0:00:04]}  Ke5 {[%clk 0:00:04]} 83. Nd3+ {[%clk 0:00:04]}  Kd5 {[%clk 0:00:04]} 84. Nxb2 {[%clk 0:00:04]}  Nxb2 {[%clk 0:00:05]} 85. Rb4 {[%clk 0:00:05]}  Nd3 {[%clk 0:00:05]} 86. Rb5+ {[%clk 0:00:05]}  Ke4 {[%clk 0:00:05]} 87. Rb8 {[%clk 0:00:05]}  Ne1+ {[%clk 0:00:06]} 88. Kf1 {[%clk 0:00:05]}  Nf3 {[%clk 0:00:06]} 89. Ke2 {[%clk 0:00:05]}  Nd4+ {[%clk 0:00:07]} 90. Kf1 {[%clk 0:00:05]}  Nf3 {[%clk 0:00:07]} 91. Re8+ {[%clk 0:00:05]}  Kd4 {[%clk 0:00:07]} 92. Ke2 {[%clk 0:00:06]}  Ng1+ {[%clk 0:00:07]} 93. Kf1 {[%clk 0:00:06]}  Nf3 {[%clk 0:00:08]} 94. Re7 {[%clk 0:00:06]}  Nd2+ {[%clk 0:00:08]} 95. Ke2 {[%clk 0:00:06]}  Nf3 {[%clk 0:00:09]} 96. Rd7+ {[%clk 0:00:06]}  Ke4 {[%clk 0:00:09]} 97. Re7+ {[%clk 0:00:06]}  Kd4 {[%clk 0:00:10]} 98. Ra7 {[%clk 0:00:07]}  Ng1+ {[%clk 0:00:10]} 99. Ke1 {[%clk 0:00:07]}  Nf3+ {[%clk 0:00:11]} 100. Kf1 {[%clk 0:00:07]}  Nd2+ {[%clk 0:00:11]} 101. Ke2 {[%clk 0:00:07]}  Nf3 {[%clk 0:00:11]} 102. Ra4+ {[%clk 0:00:07]}  Ke5 {[%clk 0:00:12]} 103. Ke3 {[%clk 0:00:08]}  Ne1 {[%clk 0:00:12]} 104. Ra5+ {[%clk 0:00:08]}  Kf6 {[%clk 0:00:12]} 105. Rc5 {[%clk 0:00:08]}  Ke6 {[%clk 0:00:10]} 106. Rc6+ {[%clk 0:00:06]}  Kd5 {[%clk 0:00:10]} 107. Rc1 {[%clk 0:00:05]}  Ng2+ {[%clk 0:00:08]} 108. Ke2 {[%clk 0:00:05]}  f4 {[%clk 0:00:08]} 109. Kf1 {[%clk 0:00:04]}  f3 {[%clk 0:00:06]} 110. Rc8 {[%clk 0:00:03]}  Ke5 {[%clk 0:00:06]} 111. Rf8 {[%clk 0:00:04]}  Ke4 {[%clk 0:00:06]} 112. Rf7 {[%clk 0:00:04]}  Ke5 {[%clk 0:00:07]} 113. Rg7 {[%clk 0:00:03]}  Kf5 {[%clk 0:00:07]} 114. Rh7 {[%clk 0:00:03]}  Kg6 {[%clk 0:00:05]} 115. Rh8 {[%clk 0:00:03]}  Kg7 {[%clk 0:00:06]} 116. Rh5 {[%clk 0:00:04]}  Kg6 {[%clk 0:00:06]} 117. Ra5 {[%clk 0:00:04]}  Kf6 {[%clk 0:00:07]} 118. Rh5 {[%clk 0:00:04]}  Kg6 {[%clk 0:00:07]} 119. Rh2 {[%clk 0:00:05]}  Kf6 {[%clk 0:00:07]} 120. Rxg2 {[%clk 0:00:05]}  fxg2+ {[%clk 0:00:07]} 121. Kxg2 {[%clk 0:00:05]}  Ke5 {[%clk 0:00:08]} 122. Kf1 {[%clk 0:00:06]}  Kd5 {[%clk 0:00:06]} 123. Ke1 {[%clk 0:00:05]}  Ke5 {[%clk 0:00:07]} 124. Kd2 {[%clk 0:00:04]}  Kd4 {[%clk 0:00:07]} 125. Ke2 {[%clk 0:00:04]}  Ke4 {[%clk 0:00:08]} 126. Ke1 {[%clk 0:00:04]}  Ke5 {[%clk 0:00:08]} 127. Kf1 {[%clk 0:00:04]}  Kf5 {[%clk 0:00:08]} 128. Ke1 {[%clk 0:00:03]}  Ke5 {[%clk 0:00:08]} 1/2-1/2


[Site "https://www.chess.com"]

[Event "Titled Tuesday Blitz April 11 Late 2023"]
[White "Manukyan, Sargis A."]
[Black "Alekseenko, Kirill"]
[WhiteFideId "13303970"]
[BlackFideId "4135539"]
[WhiteElo "2187"]
[BlackElo "2683"]
[Result "0-1"]
[Round "05"]
[TimeControl "180+2"]
[Date "2023.04.11"]
[WhiteClock "0:00:10"]
[BlackClock "0:00:12"]

1. d4 {[%clk 0:03:00]}  d5 {[%clk 0:03:00]} 2. c4 {[%clk 0:03:01]}  dxc4 {[%clk 0:03:00]} 3. e4 {[%clk 0:02:59]}  Nf6 {[%clk 0:03:00]} 4. e5 {[%clk 0:02:59]}  Nd5 {[%clk 0:03:01]} 5. Bxc4 {[%clk 0:02:59]}  Nb6 {[%clk 0:03:02]} 6. Bb3 {[%clk 0:02:58]}  Nc6 {[%clk 0:03:02]} 7. Ne2 {[%clk 0:02:55]}  Bf5 {[%clk 0:03:01]} 8. Nbc3 {[%clk 0:02:55]}  e6 {[%clk 0:03:02]} 9. Be3 {[%clk 0:02:53]}  Qd7 {[%clk 0:03:02]} 10. O-O {[%clk 0:02:53]}  O-O-O {[%clk 0:03:02]} 11. Qc1 {[%clk 0:02:29]}  Kb8 {[%clk 0:03:01]} 12. Rd1 {[%clk 0:02:29]}  Nb4 {[%clk 0:03:00]} 13. Ng3 {[%clk 0:02:26]}  Bg6 {[%clk 0:02:58]} 14. Nce4 {[%clk 0:02:25]}  Qc6 {[%clk 0:02:19]} 15. Qxc6 {[%clk 0:02:05]}  Nxc6 {[%clk 0:02:20]} 16. Rac1 {[%clk 0:02:03]}  Be7 {[%clk 0:02:14]} 17. a3 {[%clk 0:01:55]}  h5 {[%clk 0:02:02]} 18. Nc5 {[%clk 0:01:45]}  h4 {[%clk 0:02:01]} 19. Ne2 {[%clk 0:01:42]}  h3 {[%clk 0:01:58]} 20. g4 {[%clk 0:01:28]}  Bxc5 {[%clk 0:01:43]} 21. dxc5 {[%clk 0:01:12]}  Nd5 {[%clk 0:01:36]} 22. Bxd5 {[%clk 0:01:09]}  exd5 {[%clk 0:01:37]} 23. f4 {[%clk 0:01:01]}  Be4 {[%clk 0:01:37]} 24. Bf2 {[%clk 0:00:56]}  Bf3 {[%clk 0:01:35]} 25. Rd2 {[%clk 0:00:51]}  Bxg4 {[%clk 0:01:35]} 26. Nd4 {[%clk 0:00:51]}  Nxd4 {[%clk 0:01:28]} 27. Bxd4 {[%clk 0:00:50]}  Bf3 {[%clk 0:01:26]} 28. Kf2 {[%clk 0:00:51]}  Be4 {[%clk 0:01:25]} 29. Rg1 {[%clk 0:00:51]}  Bg2 {[%clk 0:01:10]} 30. Kg3 {[%clk 0:00:49]}  Rh6 {[%clk 0:01:06]} 31. f5 {[%clk 0:00:46]}  Rh5 {[%clk 0:01:05]} 32. Kg4 {[%clk 0:00:42]}  Rdh8 {[%clk 0:01:03]} 33. Bf2 {[%clk 0:00:42]}  Be4 {[%clk 0:01:00]} 34. f6 {[%clk 0:00:36]}  gxf6 {[%clk 0:00:58]} 35. exf6 {[%clk 0:00:36]}  R5h6 {[%clk 0:00:50]} 36. Bd4 {[%clk 0:00:20]}  Rg8+ {[%clk 0:00:49]} 37. Kf4 {[%clk 0:00:20]}  Rxg1 {[%clk 0:00:49]} 38. Bxg1 {[%clk 0:00:21]}  Rxf6+ {[%clk 0:00:50]} 39. Ke5 {[%clk 0:00:17]}  Re6+ {[%clk 0:00:43]} 40. Kd4 {[%clk 0:00:17]}  Rg6 {[%clk 0:00:43]} 41. Be3 {[%clk 0:00:17]}  Kc8 {[%clk 0:00:42]} 42. b4 {[%clk 0:00:17]}  c6 {[%clk 0:00:41]} 43. a4 {[%clk 0:00:17]}  a6 {[%clk 0:00:38]} 44. Rf2 {[%clk 0:00:15]}  f6 {[%clk 0:00:35]} 45. Bf4 {[%clk 0:00:16]}  Kd7 {[%clk 0:00:35]} 46. Bg3 {[%clk 0:00:16]}  Ke6 {[%clk 0:00:32]} 47. b5 {[%clk 0:00:14]}  axb5 {[%clk 0:00:32]} 48. axb5 {[%clk 0:00:15]}  Rxg3 {[%clk 0:00:18]} 49. hxg3 {[%clk 0:00:15]}  Bg2 {[%clk 0:00:19]} 50. Re2+ {[%clk 0:00:13]}  Kf7 {[%clk 0:00:19]} 51. b6 {[%clk 0:00:04]}  h2 {[%clk 0:00:19]} 52. Rxg2 {[%clk 0:00:05]}  h1=Q {[%clk 0:00:19]} 53. Ra2 {[%clk 0:00:05]}  Qe4+ {[%clk 0:00:18]} 54. Kc3 {[%clk 0:00:05]}  Qc4+ {[%clk 0:00:18]} 55. Kb2 {[%clk 0:00:06]}  Qxc5 {[%clk 0:00:18]} 56. Ra3 {[%clk 0:00:07]}  Qxb6+ {[%clk 0:00:17]} 57. Rb3 {[%clk 0:00:08]}  Qf2+ {[%clk 0:00:16]} 58. Ka3 {[%clk 0:00:08]}  b5 {[%clk 0:00:17]} 59. g4 {[%clk 0:00:09]}  Qd4 {[%clk 0:00:14]} 60. g5 {[%clk 0:00:09]}  Qa4+ {[%clk 0:00:13]} 61. Kb2 {[%clk 0:00:10]}  Qxb3+ {[%clk 0:00:13]} 62. Ka1 {[%clk 0:00:10]}  Qa3+ {[%clk 0:00:12]} 0-1


[Site "https://www.chess.com"]

[Event "Titled Tuesday Blitz April 11 Late 2023"]
[White "Deac, Bogdan-Daniel"]
[Black "Manelyuk, Daniil"]
[WhiteFideId "1226380"]
[BlackFideId "44173920"]
[WhiteElo "2649"]
[BlackElo "2259"]
[Result "1-0"]
[Round "05"]
[TimeControl "180+2"]
[Date "2023.04.11"]
[WhiteClock "0:00:10"]
[BlackClock "0:00:09"]

1. b3 {[%clk 0:02:58]}  c5 {[%clk 0:02:52]} 2. Bb2 {[%clk 0:02:58]}  d6 {[%clk 0:02:52]} 3. e3 {[%clk 0:02:59]}  e5 {[%clk 0:02:53]} 4. c4 {[%clk 0:02:57]}  g6 {[%clk 0:02:53]} 5. Nc3 {[%clk 0:02:57]}  Bg7 {[%clk 0:02:53]} 6. g3 {[%clk 0:02:58]}  Ne7 {[%clk 0:02:53]} 7. Bg2 {[%clk 0:02:58]}  O-O {[%clk 0:02:54]} 8. Nge2 {[%clk 0:02:58]}  Nbc6 {[%clk 0:02:55]} 9. O-O {[%clk 0:02:57]}  Be6 {[%clk 0:02:55]} 10. Nd5 {[%clk 0:02:57]}  Bxd5 {[%clk 0:02:52]} 11. cxd5 {[%clk 0:02:57]}  Nb4 {[%clk 0:02:52]} 12. e4 {[%clk 0:02:57]}  f5 {[%clk 0:02:46]} 13. d3 {[%clk 0:02:55]}  f4 {[%clk 0:02:27]} 14. Bh3 {[%clk 0:02:14]}  g5 {[%clk 0:02:16]} 15. Nc3 {[%clk 0:02:05]}  Qe8 {[%clk 0:02:11]} 16. Bg4 {[%clk 0:01:42]}  Qg6 {[%clk 0:01:53]} 17. Nb5 {[%clk 0:01:37]}  Na6 {[%clk 0:01:36]} 18. Be6+ {[%clk 0:01:23]}  Kh8 {[%clk 0:01:35]} 19. Nxd6 {[%clk 0:01:23]}  Nc7 {[%clk 0:01:31]} 20. Nf5 {[%clk 0:01:21]}  Nxe6 {[%clk 0:01:25]} 21. Nxe7 {[%clk 0:01:08]}  Qf7 {[%clk 0:01:19]} 22. Nf5 {[%clk 0:01:07]}  Nd4 {[%clk 0:01:18]} 23. Bxd4 {[%clk 0:01:02]}  exd4 {[%clk 0:01:09]} 24. gxf4 {[%clk 0:00:49]}  gxf4 {[%clk 0:01:06]} 25. Qg4 {[%clk 0:00:46]}  Be5 {[%clk 0:00:59]} 26. Kh1 {[%clk 0:00:45]}  Qf6 {[%clk 0:00:40]} 27. Rg1 {[%clk 0:00:39]}  b5 {[%clk 0:00:40]} 28. Rac1 {[%clk 0:00:34]}  Rac8 {[%clk 0:00:40]} 29. Qh3 {[%clk 0:00:29]}  a5 {[%clk 0:00:39]} 30. Rg4 {[%clk 0:00:24]}  Rg8 {[%clk 0:00:32]} 31. Rcg1 {[%clk 0:00:21]}  Rxg4 {[%clk 0:00:29]} 32. Qxg4 {[%clk 0:00:22]}  Rf8 {[%clk 0:00:21]} 33. Qf3 {[%clk 0:00:13]}  a4 {[%clk 0:00:19]} 34. bxa4 {[%clk 0:00:09]}  c4 {[%clk 0:00:19]} 35. axb5 {[%clk 0:00:06]}  c3 {[%clk 0:00:20]} 36. a4 {[%clk 0:00:06]}  Ra8 {[%clk 0:00:20]} 37. Qd1 {[%clk 0:00:05]}  f3 {[%clk 0:00:16]} 38. Qxf3 {[%clk 0:00:05]}  Rxa4 {[%clk 0:00:16]} 39. Qg4 {[%clk 0:00:04]}  Ra8 {[%clk 0:00:16]} 40. b6 {[%clk 0:00:04]}  Rb8 {[%clk 0:00:15]} 41. b7 {[%clk 0:00:04]}  c2 {[%clk 0:00:15]} 42. Qe2 {[%clk 0:00:03]}  Qf7 {[%clk 0:00:11]} 43. Qxc2 {[%clk 0:00:02]}  Qh5 {[%clk 0:00:11]} 44. f4 {[%clk 0:00:02]}  Bxf4 {[%clk 0:00:10]} 45. Qg2 {[%clk 0:00:03]}  Be5 {[%clk 0:00:08]} 46. Ng3 {[%clk 0:00:03]}  Qh6 {[%clk 0:00:06]} 47. Rf1 {[%clk 0:00:03]}  Rxb7 {[%clk 0:00:05]} 48. Nf5 {[%clk 0:00:03]}  Qg6 {[%clk 0:00:05]} 49. Qxg6 {[%clk 0:00:03]}  hxg6 {[%clk 0:00:06]} 50. Nh4 {[%clk 0:00:04]}  Kg7 {[%clk 0:00:06]} 51. Nf3 {[%clk 0:00:04]}  Bb8 {[%clk 0:00:04]} 52. Nxd4 {[%clk 0:00:04]}  Rb2 {[%clk 0:00:05]} 53. Ne6+ {[%clk 0:00:04]}  Kh6 {[%clk 0:00:05]} 54. d4 {[%clk 0:00:04]}  Rxh2+ {[%clk 0:00:05]} 55. Kg1 {[%clk 0:00:04]}  Rd2 {[%clk 0:00:06]} 56. Rf8 {[%clk 0:00:05]}  Bh2+ {[%clk 0:00:02]} 57. Kh1 {[%clk 0:00:05]}  Kh5 {[%clk 0:00:01]} 58. Rh8+ {[%clk 0:00:05]}  Kg4 {[%clk 0:00:02]} 59. Rxh2 {[%clk 0:00:05]}  Rd1+ {[%clk 0:00:02]} 60. Kg2 {[%clk 0:00:05]}  Rd2+ {[%clk 0:00:03]} 61. Kg1 {[%clk 0:00:05]}  Rd1+ {[%clk 0:00:04]} 62. Kf2 {[%clk 0:00:05]}  Rd2+ {[%clk 0:00:04]} 63. Ke3 {[%clk 0:00:06]}  Rxh2 {[%clk 0:00:04]} 64. d6 {[%clk 0:00:06]}  Rh3+ {[%clk 0:00:04]} 65. Kd2 {[%clk 0:00:06]}  Kf3 {[%clk 0:00:04]} 66. Ng5+ {[%clk 0:00:05]}  Kf4 {[%clk 0:00:03]} 67. Nxh3+ {[%clk 0:00:06]}  Kxe4 {[%clk 0:00:04]} 68. d7 {[%clk 0:00:06]}  Kxd4 {[%clk 0:00:05]} 69. d8=Q+ {[%clk 0:00:07]}  Ke4 {[%clk 0:00:06]} 70. Qg5 {[%clk 0:00:07]}  Kf3 {[%clk 0:00:06]} 71. Nf4 {[%clk 0:00:07]}  Kf2 {[%clk 0:00:06]} 72. Nxg6 {[%clk 0:00:08]}  Kf1 {[%clk 0:00:07]} 73. Qf4+ {[%clk 0:00:08]}  Kg2 {[%clk 0:00:07]} 74. Ke2 {[%clk 0:00:08]}  Kh1 {[%clk 0:00:08]} 75. Qg5 {[%clk 0:00:08]}  Kh2 {[%clk 0:00:08]} 76. Kf2 {[%clk 0:00:09]}  Kh3 {[%clk 0:00:09]} 77. Qh4# {[%clk 0:00:10]} 1-0


[Site "https://www.chess.com"]

[Event "Titled Tuesday Blitz April 11 Late 2023"]
[White "Melkumyan, Hrant"]
[Black "Naroditsky, Daniel"]
[WhiteFideId "13302485"]
[BlackFideId "2026961"]
[WhiteElo "2604"]
[BlackElo "2633"]
[Result "0-1"]
[Round "05"]
[TimeControl "180+2"]
[Date "2023.04.11"]
[WhiteClock "0:01:03"]
[BlackClock "0:00:55"]

1. c4 {[%clk 0:02:50]}  e5 {[%clk 0:03:00]} 2. e3 {[%clk 0:02:45]}  Nf6 {[%clk 0:02:58]} 3. Nc3 {[%clk 0:02:45]}  Bb4 {[%clk 0:02:56]} 4. Nge2 {[%clk 0:02:44]}  b6 {[%clk 0:02:51]} 5. a3 {[%clk 0:02:44]}  Bxc3 {[%clk 0:02:52]} 6. Nxc3 {[%clk 0:02:45]}  Bb7 {[%clk 0:02:52]} 7. d4 {[%clk 0:02:43]}  exd4 {[%clk 0:02:50]} 8. exd4 {[%clk 0:02:42]}  O-O {[%clk 0:02:51]} 9. Bg5 {[%clk 0:02:31]}  h6 {[%clk 0:02:49]} 10. Bh4 {[%clk 0:02:30]}  Re8+ {[%clk 0:02:47]} 11. Be2 {[%clk 0:02:30]}  g5 {[%clk 0:02:26]} 12. Bg3 {[%clk 0:02:30]}  Bxg2 {[%clk 0:02:27]} 13. Rg1 {[%clk 0:02:30]}  Bf3 {[%clk 0:02:27]} 14. h4 {[%clk 0:02:31]}  Ne4 {[%clk 0:02:05]} 15. Be5 {[%clk 0:02:25]}  Nxc3 {[%clk 0:02:02]} 16. bxc3 {[%clk 0:02:26]}  Bxe2 {[%clk 0:02:02]} 17. Qxe2 {[%clk 0:02:27]}  d6 {[%clk 0:01:57]} 18. hxg5 {[%clk 0:02:13]}  dxe5 {[%clk 0:01:48]} 19. gxh6+ {[%clk 0:02:13]}  Kh8 {[%clk 0:01:46]} 20. O-O-O {[%clk 0:01:56]}  Qf6 {[%clk 0:01:18]} 21. dxe5 {[%clk 0:01:51]}  Nc6 {[%clk 0:01:17]} 22. f4 {[%clk 0:01:02]}  Qxf4+ {[%clk 0:01:15]} 23. Kb2 {[%clk 0:01:02]}  Nxe5 {[%clk 0:01:07]} 24. Rd4 {[%clk 0:01:02]}  Nxc4+ {[%clk 0:00:54]} 25. Qxc4 {[%clk 0:01:02]}  Qf2+ {[%clk 0:00:54]} 26. Kb3 {[%clk 0:01:03]}  Qxg1 {[%clk 0:00:55]} 27. Qxf7 {[%clk 0:01:03]}  Qg8 {[%clk 0:00:55]} 0-1


[Site "https://www.chess.com"]

[Event "Titled Tuesday Blitz April 11 Late 2023"]
[White "Caruana, Fabiano"]
[Black "Kovalev, Vladislav"]
[WhiteFideId "2020009"]
[BlackFideId "13504398"]
[WhiteElo "2837"]
[BlackElo "2555"]
[Result "1-0"]
[Round "05"]
[TimeControl "180+2"]
[Date "2023.04.11"]
[WhiteClock "0:01:54"]
[BlackClock "0:00:02"]

1. e4 {[%clk 0:03:00]}  e5 {[%clk 0:03:00]} 2. Nf3 {[%clk 0:03:01]}  Nc6 {[%clk 0:03:00]} 3. Bb5 {[%clk 0:03:01]}  a6 {[%clk 0:03:01]} 4. Ba4 {[%clk 0:03:02]}  Nf6 {[%clk 0:03:00]} 5. O-O {[%clk 0:03:02]}  Be7 {[%clk 0:03:00]} 6. Bxc6 {[%clk 0:03:02]}  dxc6 {[%clk 0:03:01]} 7. Re1 {[%clk 0:03:02]}  Nd7 {[%clk 0:03:00]} 8. d4 {[%clk 0:03:02]}  exd4 {[%clk 0:03:01]} 9. Qxd4 {[%clk 0:03:02]}  O-O {[%clk 0:03:01]} 10. Bf4 {[%clk 0:03:01]}  Nc5 {[%clk 0:03:02]} 11. Qe3 {[%clk 0:03:02]}  Ne6 {[%clk 0:03:03]} 12. Bg3 {[%clk 0:03:02]}  Bc5 {[%clk 0:02:39]} 13. Qe2 {[%clk 0:03:02]}  Qe7 {[%clk 0:02:28]} 14. c3 {[%clk 0:02:57]}  a5 {[%clk 0:02:19]} 15. Nbd2 {[%clk 0:02:57]}  b6 {[%clk 0:02:14]} 16. Ne5 {[%clk 0:02:54]}  Bb7 {[%clk 0:02:02]} 17. Ndf3 {[%clk 0:02:54]}  f6 {[%clk 0:01:41]} 18. Nd3 {[%clk 0:02:53]}  Ba6 {[%clk 0:01:36]} 19. Qc2 {[%clk 0:02:52]}  Rad8 {[%clk 0:01:34]} 20. Rad1 {[%clk 0:02:51]}  Qf7 {[%clk 0:00:58]} 21. Nxc5 {[%clk 0:02:48]}  Nxc5 {[%clk 0:00:59]} 22. Nd4 {[%clk 0:02:48]}  Bd3 {[%clk 0:00:27]} 23. Qc1 {[%clk 0:02:48]}  Bxe4 {[%clk 0:00:28]} 24. Qf4 {[%clk 0:02:48]}  Nd3 {[%clk 0:00:10]} 25. Qxe4 {[%clk 0:02:47]}  Nxe1 {[%clk 0:00:11]} 26. Qxe1 {[%clk 0:02:35]}  Rfe8 {[%clk 0:00:10]} 27. Qf1 {[%clk 0:02:33]}  c5 {[%clk 0:00:10]} 28. Nb3 {[%clk 0:02:28]}  a4 {[%clk 0:00:07]} 29. Nc1 {[%clk 0:01:53]}  Rxd1 {[%clk 0:00:07]} 30. Qxd1 {[%clk 0:01:54]}  Qd7 {[%clk 0:00:02]} 31. Qf1 {[%clk 0:01:54]} 1-0


[Site "https://www.chess.com"]

[Event "Titled Tuesday Blitz April 11 Late 2023"]
[White "Bortnyk, Mykola"]
[Black "Averjanov, Alexey"]
[WhiteFideId "14120836"]
[BlackFideId "14109867"]
[WhiteElo "2582"]
[BlackElo "2399"]
[Result "1-0"]
[Round "05"]
[TimeControl "180+2"]
[Date "2023.04.11"]
[WhiteClock "0:02:16"]
[BlackClock "0:02:14"]

1. Nf3 {[%clk 0:02:57]}  d5 {[%clk 0:02:59]} 2. g3 {[%clk 0:02:56]}  Nf6 {[%clk 0:02:59]} 3. Bg2 {[%clk 0:02:56]}  e6 {[%clk 0:02:58]} 4. c4 {[%clk 0:02:54]}  Be7 {[%clk 0:02:58]} 5. O-O {[%clk 0:02:46]}  O-O {[%clk 0:02:58]} 6. cxd5 {[%clk 0:02:47]}  exd5 {[%clk 0:02:57]} 7. d4 {[%clk 0:02:45]}  b6 {[%clk 0:02:49]} 8. Ne5 {[%clk 0:02:44]}  Bb7 {[%clk 0:02:48]} 9. Qc2 {[%clk 0:02:42]}  c5 {[%clk 0:02:44]} 10. dxc5 {[%clk 0:02:41]}  bxc5 {[%clk 0:02:45]} 11. Nc3 {[%clk 0:02:38]}  Nbd7 {[%clk 0:02:41]} 12. Bf4 {[%clk 0:02:38]}  Qc8 {[%clk 0:02:27]} 13. Bh3 {[%clk 0:02:32]}  Qc6 {[%clk 0:02:23]} 14. Nxc6 {[%clk 0:02:31]}  Bxc6 {[%clk 0:02:20]} 15. Bg2 {[%clk 0:02:24]}  Nb6 {[%clk 0:02:18]} 16. Rad1 {[%clk 0:02:22]}  Rfe8 {[%clk 0:02:14]} 17. Bc7 {[%clk 0:02:16]} 1-0


[Site "https://www.chess.com"]